fUSD/lending_fUSD_20260202
["ID","MTS","AMOUNT","RATE_DAILY","PERIOD"]
[404333463,1770065443286,-521.7,0.00013698,2]
[404333464,1770065443295,-500.0,0.00013698,2]
[404333465,1770065443305,-521.7,0.00013698,2]
[404333466,1770065443315,-500.0,0.00013698,2]
[404333467,1770065443326,-521.7,0.00013698,2]
[404333468,1770065443335,-521.7,0.00013698,2]
[404333469,1770065443344,-500.0,0.00013698,2]
[404333470,1770065443354,-521.7,0.00013698,2]
[404333471,1770065443363,-500.0,0.00013698,2]
[404333472,1770065443372,-521.7,0.00013698,2]
[404333473,1770065443381,-500.0,0.00013698,2]
[404333474,1770065443391,-521.7,0.00013698,2]
[404333475,1770065443400,-507.90611429,0.00013698,2]
[404333476,1770065443409,-521.7,0.00013698,2]
[404333477,1770065443419,-521.7,0.00013698,2]
[404333478,1770065443428,-521.7,0.00013698,2]
[404333479,1770065443438,-521.7,0.00013698,2]
[404333480,1770065443447,-521.7,0.00013698,2]
[404333481,1770065443457,-521.7,0.00013698,2]
[404333482,1770065443467,-521.7,0.00013698,2]
[404333483,1770065443476,-500.0,0.00013698,2]
[404333484,1770065443485,-500.0,0.00013698,2]
[404333485,1770065443496,-500.0,0.00013698,2]
[404333486,1770065443506,-500.0,0.00013698,2]
[404333487,1770065443516,-500.0,0.00013698,2]
[404333488,1770065443525,-500.0,0.00013698,2]
[404333489,1770065443536,-500.0,0.00013698,2]
[404333490,1770065443546,-500.0,0.00013698,2]
[404333491,1770065443556,-500.0,0.00013698,2]
[404333492,1770065443565,-500.0,0.00013698,2]
[404333493,1770065443575,-500.0,0.00013698,2]
[404333494,1770065443584,-500.0,0.00013698,2]
[404333495,1770065443593,-500.0,0.00013698,2]
[404333496,1770065443602,-500.0,0.00013698,2]
[404333497,1770065443612,-500.0,0.00013698,2]
[404333498,1770065443622,-565.72,0.00013698,2]
[404333499,1770065443631,-565.72,0.00013698,2]
[404333500,1770065443640,-565.72,0.00013698,2]
[404333501,1770065443649,-565.72,0.00013698,2]
[404333502,1770065443658,-565.72,0.00013698,2]
[404333503,1770065443667,-565.72,0.00013698,2]
[404333504,1770065443676,-565.72,0.00013698,2]
[404333505,1770065443686,-565.72,0.00013698,2]
[404333506,1770065443695,-565.72,0.00013698,2]
[404333507,1770065443706,-565.72,0.00013698,2]
[404333509,1770065443720,-565.72,0.00013698,2]
[404333511,1770065443730,-565.72,0.00013698,2]
[404333513,1770065443739,-565.72,0.00013698,2]
[404333514,1770065443749,-565.72,0.00013698,2]
[404333515,1770065443758,-565.72,0.00013698,2]
[404333516,1770065443769,-1083.53,0.00013698,2]
[404333518,1770065443778,-1083.53,0.00013698,2]
[404333519,1770065443787,-1083.53,0.00013698,2]
[404333520,1770065443797,-1083.53,0.00013698,2]
[404333521,1770065443806,-1083.53,0.00013698,2]
[404333523,1770065443815,-1083.53,0.00013698,2]
[404333525,1770065443824,-1083.53,0.00013698,2]
[404333528,1770065443833,-1083.53,0.00013698,2]
[404333531,1770065443842,-1083.53,0.00013698,2]
[404333534,1770065443851,-1083.53,0.00013698,2]
[404333536,1770065443860,-1083.53,0.00013698,2]
[404333538,1770065443870,-1083.53,0.00013698,2]
[404333540,1770065443879,-1083.53,0.00013698,2]
[404333542,1770065443887,-1083.53,0.00013698,2]
[404333544,1770065443896,-1083.53,0.00013698,2]
[404333546,1770065443905,-1083.53,0.00013698,2]
[404333548,1770065443915,-1083.53,0.00013698,2]
[404333550,1770065443924,-1083.53,0.00013698,2]
[404333552,1770065443933,-1083.53,0.00013698,2]
[404333553,1770065443942,-1083.53,0.00013698,2]
[404333554,1770065443951,-1083.53,0.00013698,2]
[404333555,1770065443960,-1083.53,0.00013698,2]
[404333556,1770065443968,-1083.53,0.00013698,2]
[404333557,1770065443978,-1083.73994886,0.00013698,2]
[404333558,1770065443986,-535.53919898,0.00013698,2]
[404333559,1770065443996,-500.0,0.00013698,2]
[404333560,1770065444005,-500.0,0.00013698,2]
[404333561,1770065444014,-500.0,0.00013698,2]
[404333562,1770065444025,-500.0,0.00013698,2]
[404333563,1770065444035,-500.0,0.00013698,2]
[404333564,1770065444044,-500.0,0.00013698,2]
[404333565,1770065444055,-500.0,0.00013698,2]
[404333566,1770065444065,-500.0,0.00013698,2]
[404333567,1770065444076,-500.0,0.00013698,2]
[404333568,1770065444085,-330.26941115,0.00013698,2]
[404333569,1770065444097,-500.0,0.00013698,2]
[404333570,1770065444107,-500.0,0.00013698,2]
[404333571,1770065444118,-500.0,0.00013698,2]
[404333572,1770065444128,-500.0,0.00013698,2]
[404333573,1770065444139,-500.0,0.00013698,2]
[404333574,1770065444149,-500.0,0.00013698,2]
[404333575,1770065444159,-500.0,0.00013698,2]
[404333576,1770065444168,-500.0,0.00013698,2]
[404333577,1770065444177,-500.0,0.00013698,2]
[404333578,1770065444186,-500.0,0.00013698,2]
[404333579,1770065444195,-500.0,0.00013698,2]
[404333580,1770065444205,-500.0,0.00013698,2]
[404333581,1770065444214,-500.0,0.00013698,2]
[404333582,1770065444223,-500.0,0.00013698,2]
[404333583,1770065444232,-500.0,0.00013698,2]
[404333584,1770065444241,-500.0,0.00013698,2]
[404333585,1770065444251,-500.0,0.00013698,2]
[404333586,1770065444260,-500.0,0.00013698,2]
[404333587,1770065444269,-500.0,0.00013698,2]
[404333588,1770065444278,-500.0,0.00013698,2]
[404333589,1770065444289,-500.0,0.00013698,2]
[404333590,1770065444300,-560.54945219,0.00013698,2]
[404333591,1770065444309,-200.0,0.00013699,2]
[404333592,1770065444318,-4148.95,0.000137,2]
[404333593,1770065444328,-4148.95,0.000137,2]
[404333594,1770065444339,-4148.95,0.000137,2]
[404333595,1770065444350,-4148.95,0.000137,2]
[404333596,1770065444360,-4148.95,0.000137,2]
[404333597,1770065444370,-500.0,0.00013753,2]
[404333598,1770065444381,-19029.08521363,0.00013783,2]
[404333599,1770065444391,-200.0,0.00013806,2]
[404333600,1770065444401,-1536.04360649,0.00013867,2]
[404333601,1770065444410,-225.18697532,0.00013867,2]
[404333602,1770065444419,-187.78006525,0.00013867,2]
[404333603,1770065444429,-230.16041742,0.00013867,2]
[404333604,1770065444438,-500.0,0.00013921,2]
[404333605,1770065444448,-1254.55198349,0.00013943,2]
[404333606,1770065444457,-704.46171674,0.00013943,2]
[404333607,1770065444466,-200.0,0.00013944,2]
[404333608,1770065444475,-500.0,0.00013952,2]
[404333609,1770065444485,-596.97,0.00013972,2]
[404333610,1770065444494,-474.27,0.00013972,2]
[404333611,1770065444503,-626.72,0.00013972,2]
[404333612,1770065444513,-170.36367963,0.00013973,2]
[404333613,1770065444522,-500.0,0.00013973,2]
[404333614,1770065444531,-500.0,0.00013973,2]
[404333615,1770065444540,-500.0,0.00013973,2]
[404333616,1770065444549,-500.0,0.00013973,2]
[404333617,1770065444559,-168.13382401,0.00013973,2]
[404333618,1770065444568,-500.0,0.00013973,2]
[404333619,1770065444577,-500.0,0.00013973,2]
[404333620,1770065444586,-500.0,0.00013973,2]
[404333621,1770065444596,-500.0,0.00013973,2]
[404333622,1770065444605,-500.0,0.00013973,2]
[404333623,1770065444615,-500.0,0.00013973,2]
[404333624,1770065444625,-164.70227396,0.00013973,2]
[404333625,1770065444634,-541.62569807,0.00013973,2]
[404333626,1770065444643,-500.0,0.00013973,2]
[404333627,1770065444652,-500.0,0.00013973,2]
[404333628,1770065444661,-500.0,0.00013973,2]
[404333629,1770065444671,-500.0,0.00013973,2]
[404333630,1770065444680,-500.0,0.00013973,2]
[404333631,1770065444691,-500.0,0.00013973,2]
[404333632,1770065444702,-500.0,0.00013973,2]
[404333633,1770065444715,-500.94761523,0.00013973,2]
[404333634,1770065444724,-569.16951839,0.00013973,2]
[404333635,1770065444733,-500.0,0.00013973,2]
[404333636,1770065444743,-500.0,0.00013973,2]
[404333637,1770065444757,-500.0,0.00013973,2]
[404333638,1770065444766,-500.0,0.00013973,2]
[404333639,1770065444775,-500.0,0.00013973,2]
[404333640,1770065444785,-500.0,0.00013973,2]
[404333641,1770065444794,-500.0,0.00013973,2]
[404333642,1770065444804,-500.0,0.00013973,2]
[404333643,1770065444813,-500.0,0.00013973,2]
[404333644,1770065444873,-500.0,0.00013973,2]
[404333645,1770065444883,-500.0,0.00013973,2]
[404333646,1770065444894,-500.0,0.00013973,2]
[404333647,1770065444904,-163.07853281,0.00013973,2]
[404333648,1770065444914,-163.90719075,0.00013973,2]
[404333649,1770065444923,-500.0,0.00013973,2]
[404333650,1770065444932,-500.0,0.00013973,2]
[404333651,1770065444941,-460.07091613,0.00013973,2]
[404333652,1770065444950,-500.0,0.00013973,2]
[404333653,1770065444959,-500.0,0.00013973,2]
[404333654,1770065444968,-151.0,0.00014107,2]
[404333655,1770065444977,-334.5472959,0.0001414,2]
[404333656,1770065444986,-500.0,0.00014153,2]
[404333657,1770065444997,-569.72,0.00014171,2]
[404333658,1770065445006,-500.0,0.00014226,2]
[404333659,1770065445015,-474.27,0.00014246,2]
[404333660,1770065445024,-868.9,0.00014324,2]
[404333661,1770065445032,-181.63,0.00014352,2]
[404333662,1770065445041,-773.23,0.00014379,2]
[404333663,1770065445050,-521.7,0.00014381,2]
[404333664,1770065445059,-500.0,0.00014381,2]
[404333665,1770065445067,-565.72,0.00014381,2]
[404333666,1770065445076,-61251.04882904,0.00014382,2]
[404333667,1770065445086,-1592.87721993,0.00014415,2]
[404333668,1770065445095,-233.51889341,0.00014415,2]
[404333669,1770065445104,-194.72792766,0.00014415,2]
[404333670,1770065445113,-500.0,0.00014466,2]
[404333671,1770065445122,-500.0,0.00014469,2]
[404333672,1770065445131,-500.0,0.000145,2]
[404333673,1770065445140,-474.27,0.0001452,2]
[404333674,1770065445149,-1002.28291878,0.00014521,2]
[404333675,1770065445157,-1000.0,0.00014521,2]
[404333676,1770065445167,-503.87544057,0.00014521,2]
[404333677,1770065445176,-1000.0,0.00014521,2]
[404333678,1770065445185,-1000.0,0.00014521,2]
[404333679,1770065445195,-1000.0,0.00014521,2]
[404333680,1770065445205,-1000.0,0.00014521,2]
[404333681,1770065445215,-1000.0,0.00014521,2]
[404333682,1770065445226,-545.34481126,0.00014521,2]
[404333683,1770065445236,-543.53042842,0.00014521,2]
[404333684,1770065445246,-1000.0,0.00014521,2]
[404333685,1770065445257,-1046.2635897,0.00014521,2]
[404333686,1770065445265,-259.40505883,0.00014521,2]
[404333687,1770065445275,-1000.0,0.00014521,2]
[404333688,1770065445283,-1000.0,0.00014521,2]
[404333689,1770065445292,-1000.0,0.00014521,2]
[404333690,1770065445302,-1000.0,0.00014521,2]
[404333691,1770065445311,-1000.0,0.00014521,2]
[404333692,1770065445320,-1000.0,0.00014521,2]
[404333693,1770065445329,-1000.0,0.00014521,2]
[404333694,1770065445339,-181.57502123,0.00014521,2]
[404333695,1770065445350,-1000.0,0.00014521,2]
[404333696,1770065445360,-245.04092473,0.00014521,2]
[404333697,1770065445370,-1000.0,0.00014521,2]
[404333698,1770065445380,-1001.69360348,0.00014521,2]
[404333699,1770065445389,-156.95111861,0.00014521,2]
[404333700,1770065445398,-1000.0,0.00014521,2]
[404333701,1770065445407,-652.81544497,0.00014521,2]
[404333702,1770065445416,-1000.0,0.00014521,2]
[404333703,1770065445426,-1000.0,0.00014521,2]
[404333704,1770065445435,-868.9,0.00014598,2]
[404333705,1770065445445,-773.23,0.00014653,2]
[404333706,1770065445455,-180.69477029,0.00014735,2]
[404333707,1770065445464,-521.7,0.00014744,2]
[404333708,1770065445474,-500.0,0.00014744,2]
[404333709,1770065445483,-565.72,0.00014744,2]
[404333710,1770065445493,-500.0,0.00014744,2]
[404333711,1770065445504,-331488.2289054,0.00014745,2]
[404333712,1770065445513,-1152.0,0.00014759,2]
[404333713,1770065445522,-1252.0,0.00014763,2]
[404333714,1770065445531,-4609.0,0.00014764,2]
[404333715,1770065445541,-474.27,0.00014794,2]
[404333716,1770065445550,-868.9,0.00014872,2]
[404333717,1770065445559,-5003.0,0.000149,2]
[404333718,1770065445568,-773.23,0.00014927,2]
[404333719,1770065445577,-1651.81367706,0.00014963,2]
[404333720,1770065445587,-242.15909246,0.00014963,2]
[404333721,1770065445597,-201.93286099,0.00014963,2]
[404333722,1770065445606,-1235.79,0.00014999,2]
[404333723,1770065445615,-1235.79,0.00014999,2]
[404333724,1770065445625,-1235.79,0.00014999,2]
[404333725,1770065445634,-1235.79,0.00014999,2]
[404333726,1770065445643,-1235.97856515,0.00014999,2]
[404333727,1770065445652,-639.93,0.00014999,2]
[404333728,1770065445661,-639.93,0.00014999,2]
[404333729,1770065445671,-639.93,0.00014999,2]
[404333730,1770065445681,-639.93,0.00014999,2]
[404333731,1770065445691,-640.02279054,0.00014999,2]
[404333732,1770065445702,-642.09,0.00014999,2]
[404333733,1770065445711,-642.09,0.00014999,2]
[404333734,1770065445724,-642.09,0.00014999,2]
[404333735,1770065445735,-642.09,0.00014999,2]
[404333737,1770065445744,-642.24920592,0.00014999,2]
[404333738,1770065445755,-250.0,0.00015,2]
[404333739,1770065445766,-500.0,0.00015017,2]
[404333740,1770065445775,-500.0,0.00015056,2]
[404333741,1770065445784,-474.27,0.00015068,2]
[404333742,1770065445796,-521.7,0.00015068,2]
[404333744,1770065445806,-317.29293236,0.00015068,2]
[404333745,1770065445816,-565.72,0.00015068,2]
[404333746,1770065445827,-1500.0,0.00015068,2]
[404333747,1770065445837,-1539.34306558,0.00015068,2]
[404333748,1770065445847,-1506.79391477,0.00015068,2]
[404333749,1770065445857,-223.77841226,0.00015068,2]
[404333750,1770065445867,-1500.0,0.00015068,2]
[404333751,1770065445878,-1500.0,0.00015068,2]
[404333752,1770065445888,-1500.0,0.00015068,2]
[404333753,1770065445899,-1500.0,0.00015068,2]
[404333755,1770065445910,-1023.62775042,0.00015068,2]
[404333756,1770065445918,-1500.0,0.00015068,2]
[404333757,1770065445927,-1582.73923754,0.00015068,2]
[404333758,1770065445937,-1500.0,0.00015068,2]
[404333759,1770065445949,-550.7159852,0.00015068,2]
[404333760,1770065445961,-1500.0,0.00015068,2]
[404333761,1770065445972,-1500.0,0.00015068,2]
[404333762,1770065445982,-411.8365552,0.00015068,2]
[404333763,1770065445992,-1500.0,0.00015068,2]
[404333764,1770065446001,-1500.0,0.00015068,2]
[404333765,1770065446010,-1500.0,0.00015068,2]
[404333766,1770065446022,-596.97,0.00015137,2]
[404333767,1770065446031,-596.97,0.00015137,2]
[404333768,1770065446043,-596.97,0.00015137,2]
[404333769,1770065446053,-596.97,0.00015137,2]
[404333770,1770065446064,-597.07967228,0.00015137,2]
[404333771,1770065446074,-626.72,0.00015137,2]
[404333772,1770065446085,-626.72,0.00015137,2]
[404333773,1770065446095,-626.72,0.00015137,2]
[404333774,1770065446104,-626.72,0.00015137,2]
[404333775,1770065446114,-626.72317558,0.00015137,2]
[404333776,1770065446124,-181.60743456,0.00015145,2]
[404333777,1770065446134,-988.5,0.00015146,2]
[404333778,1770065446144,-773.23,0.00015201,2]
[404333779,1770065446154,-360.21,0.00015209,2]
[404333780,1770065446164,-1254.55198349,0.00015262,2]
[404333781,1770065446175,-61251.04882904,0.00015262,2]
[404333782,1770065446185,-28466.37342475,0.00015283,2]
[404333783,1770065446194,-474.27,0.00015342,2]
[404333784,1770065446204,-500.0,0.00015473,2]
[404333785,1770065446214,-500.0,0.00015473,2]
[404333786,1770065446224,-500.0,0.00015473,2]
[404333787,1770065446233,-500.0,0.00015473,2]
[404333788,1770065446243,-500.0,0.00015473,2]
[404333789,1770065446255,-500.63586771,0.00015473,2]
[404333790,1770065446264,-151.07783782,0.00015473,2]
[404333791,1770065446273,-500.0,0.00015473,2]
[404333792,1770065446282,-500.0,0.00015473,2]
[404333793,1770065446290,-500.40906893,0.00015473,2]
[404333794,1770065446300,-464.35211832,0.00015473,2]
[404333795,1770065446312,-160.54295648,0.00015473,2]
[404333796,1770065446321,-163.12661798,0.00015473,2]
[404333797,1770065446332,-163.34993731,0.00015473,2]
[404333798,1770065446342,-500.46237197,0.00015473,2]
[404333799,1770065446352,-500.0,0.00015473,2]
[404333800,1770065446362,-500.0,0.00015473,2]
[404333801,1770065446372,-500.0,0.00015473,2]
[404333802,1770065446381,-559.67308476,0.00015473,2]
[404333803,1770065446391,-500.0,0.00015473,2]
[404333804,1770065446402,-500.0,0.00015473,2]
[404333805,1770065446411,-200.70028911,0.00015473,2]
[404333806,1770065446420,-500.0,0.00015473,2]
[404333807,1770065446429,-500.41005015,0.00015473,2]
[404333808,1770065446438,-160.61738464,0.00015473,2]
[404333809,1770065446448,-500.0,0.00015473,2]
[404333811,1770065446457,-574.06272579,0.00015473,2]
[404333812,1770065446467,-500.0,0.00015473,2]
[404333813,1770065446475,-500.0,0.00015473,2]
[404333814,1770065446486,-500.0,0.00015473,2]
[404333815,1770065446496,-500.0,0.00015473,2]
[404333816,1770065446506,-500.0,0.00015473,2]
[404333817,1770065446515,-500.0,0.00015473,2]
[404333818,1770065446524,-500.0,0.00015473,2]
[404333819,1770065446533,-500.0,0.00015473,2]
[404333820,1770065446542,-500.0,0.00015473,2]
[404333821,1770065446551,-500.0,0.00015473,2]
[404333822,1770065446560,-336.43827265,0.00015473,2]
[404333823,1770065446569,-500.0,0.00015473,2]
[404333824,1770065446578,-500.0,0.00015473,2]
[404333825,1770065446587,-500.0,0.00015473,2]
[404333826,1770065446597,-500.0,0.00015473,2]
[404333827,1770065446607,-500.0,0.00015473,2]
[404333828,1770065446617,-500.0,0.00015473,2]
[404333829,1770065446627,-163.46067997,0.00015473,2]
[404333830,1770065446635,-500.0,0.00015473,2]
[404333831,1770065446644,-522.30858015,0.00015473,2]
[404333832,1770065446653,-500.0,0.00015473,2]
[404333833,1770065446662,-512.94754167,0.00015473,2]
[404333834,1770065446671,-500.0,0.00015473,2]
[404333835,1770065446680,-500.0,0.00015473,2]
[404333836,1770065446689,-500.0,0.00015473,2]
[404333837,1770065446698,-500.0,0.00015473,2]
[404333838,1770065446707,-500.0,0.00015473,2]
[404333839,1770065446718,-500.0,0.00015473,2]
[404333840,1770065446726,-500.0,0.00015473,2]
[404333841,1770065446735,-550.09529227,0.00015473,2]
[404333842,1770065446744,-593.37800921,0.00015473,2]
[404333843,1770065446755,-500.0,0.00015473,2]
[404333844,1770065446764,-500.0,0.00015473,2]
[404333845,1770065446773,-168.03217975,0.00015473,2]
[404333846,1770065446783,-500.0,0.00015473,2]
[404333847,1770065446793,-500.0,0.00015473,2]
[404333848,1770065446803,-500.6120606,0.00015473,2]
[404333849,1770065446813,-500.0,0.00015473,2]
[404333850,1770065446823,-161.45537985,0.00015473,2]
[404333851,1770065446832,-486.29318482,0.00015473,2]
[404333852,1770065446841,-565.00011393,0.00015473,2]
[404333853,1770065446850,-500.62768041,0.00015473,2]
[404333854,1770065446860,-460.30125151,0.00015473,2]
[404333855,1770065446870,-340.09137446,0.00015473,2]
[404333856,1770065446880,-500.0,0.00015473,2]
[404333857,1770065446889,-500.0,0.00015473,2]
[404333858,1770065446898,-185.46503654,0.00015473,2]
[404333859,1770065446907,-558.47394043,0.00015473,2]
[404333860,1770065446917,-500.0,0.00015473,2]
[404333861,1770065446926,-500.0,0.00015473,2]
[404333862,1770065446935,-500.0,0.00015473,2]
[404333863,1770065446944,-500.0,0.00015473,2]
[404333864,1770065446953,-346.92554585,0.00015509,2]
[404333865,1770065446962,-599.60298507,0.0001551,2]
[404333866,1770065446972,-747.8093786,0.0001551,2]
[404333867,1770065446982,-1712.93078312,0.00015511,2]
[404333868,1770065446990,-251.11897888,0.00015511,2]
[404333869,1770065447001,-209.40437684,0.00015511,2]
[404333870,1770065447009,-900.0,0.00015531,2]
[404333871,1770065447019,-500.0,0.00015565,2]
[404333872,1770065447027,-474.27,0.00015616,2]
[404333873,1770065447037,-1517.4616613,0.00015616,2]
[404333874,1770065447046,-1666.54524169,0.00015616,2]
[404333875,1770065447054,-1376.09004687,0.00015616,2]
[404333876,1770065447063,-2000.0,0.00015616,2]
[404333877,1770065447072,-2000.0,0.00015616,2]
[404333878,1770065447081,-2000.0,0.00015616,2]
[404333879,1770065447089,-2000.0,0.00015616,2]
[404333880,1770065447098,-2000.0,0.00015616,2]
[404333881,1770065447107,-2000.0,0.00015616,2]
[404333882,1770065447117,-1006.04407484,0.00015616,2]
[404333883,1770065447126,-2000.0,0.00015616,2]
[404333884,1770065447134,-2000.0,0.00015616,2]
[404333885,1770065447143,-500.0,0.00015616,2]
[404333886,1770065447151,-159.60859955,0.00015654,2]
[404333887,1770065447160,-1000.0,0.0001566,2]
[404333888,1770065447169,-569.72,0.00015672,2]
[404333889,1770065447178,-5370.41782608,0.00015749,2]
[404333890,1770065447189,-474.27,0.0001589,2]
[404333891,1770065447198,-4379.66,0.00015916,2]
[404333892,1770065447209,-704.46171674,0.00015921,2]
[404333893,1770065447219,-5000.0,0.0001596,2]
[404333894,1770065447228,-200.896366,0.00016,2]
[404333895,1770065447237,-871.81162767,0.00016021,2]
[404333896,1770065447246,-502.15998223,0.00016021,2]
[404333897,1770065447255,-500.0,0.00016021,2]
[404333898,1770065447264,-1000.0,0.00016021,2]
[404333899,1770065447275,-486.90150068,0.00016021,2]
[404333900,1770065447285,-1128.44291984,0.00016021,2]
[404333901,1770065447295,-500.0,0.00016021,2]
[404333902,1770065447305,-335.25607575,0.00016021,2]
[404333903,1770065447315,-1000.0,0.00016021,2]
[404333904,1770065447326,-494.98211284,0.00016021,2]
[404333905,1770065447335,-1000.0,0.00016021,2]
[404333906,1770065447346,-1000.0,0.00016021,2]
[404333907,1770065447355,-1000.0,0.00016021,2]
[404333908,1770065447364,-964.09949899,0.00016021,2]
[404333909,1770065447374,-1000.0,0.00016021,2]
[404333910,1770065447384,-1000.0,0.00016021,2]
[404333911,1770065447394,-1000.0,0.00016021,2]
[404333912,1770065447403,-1000.0,0.00016021,2]
[404333913,1770065447412,-1000.0,0.00016021,2]
[404333914,1770065447422,-1000.0,0.00016021,2]
[404333915,1770065447431,-1000.0,0.00016021,2]
[404333916,1770065447441,-1000.0,0.00016021,2]
[404333917,1770065447450,-1000.0,0.00016021,2]
[404333918,1770065447459,-1000.0,0.00016021,2]
[404333919,1770065447469,-1000.0,0.00016021,2]
[404333920,1770065447478,-500.0,0.00016021,2]
[404333921,1770065447487,-500.0,0.00016021,2]
[404333922,1770065447496,-500.0,0.00016021,2]
[404333923,1770065447506,-500.0,0.00016021,2]
[404333924,1770065447515,-1000.0,0.00016021,2]
[404333925,1770065447525,-1000.0,0.00016021,2]
[404333926,1770065447535,-1000.0,0.00016021,2]
[404333927,1770065447544,-1000.0,0.00016021,2]
[404333928,1770065447554,-1000.0,0.00016021,2]
[404333929,1770065447564,-1000.0,0.00016021,2]
[404333930,1770065447573,-1000.0,0.00016021,2]
[404333931,1770065447583,-504.20951303,0.00016021,2]
[404333932,1770065447592,-960.71724918,0.00016021,2]
[404333933,1770065447601,-1000.0,0.00016021,2]
[404333934,1770065447611,-1000.0,0.00016021,2]
[404333935,1770065447621,-1000.0,0.00016021,2]
[404333936,1770065447630,-1000.0,0.00016021,2]
[404333937,1770065447643,-500.0,0.00016021,2]
[404333938,1770065447653,-1000.0,0.00016021,2]
[404333939,1770065447663,-1776.30922209,0.00016059,2]
[404333940,1770065447672,-260.4103811,0.00016059,2]
[404333941,1770065447682,-217.15233878,0.00016059,2]
[404333942,1770065447691,-181.63,0.0001608,2]
[404333943,1770065447701,-500.0,0.00016113,2]
[404333944,1770065447711,-521.7,0.00016115,2]
[404333945,1770065447723,-565.72,0.00016115,2]
[404333946,1770065447733,-9999.99,0.00016116,2]
[404333947,1770065447743,-61251.04882904,0.00016141,2]
[404333948,1770065447753,-474.27,0.00016164,2]
[404333949,1770065447763,-1812.26829567,0.00016164,2]
[404333950,1770065447772,-2500.0,0.00016164,2]
[404333951,1770065447781,-2500.0,0.00016164,2]
[404333952,1770065447792,-327.96194417,0.00016164,2]
[404333953,1770065447801,-809.50611672,0.00016164,2]
[404333954,1770065447811,-2500.0,0.00016164,2]
[404333955,1770065447820,-473.78998774,0.00016164,2]
[404333956,1770065447829,-1018.20605405,0.00016164,2]
[404333957,1770065447839,-1613.0,0.00016233,2]
[404333958,1770065447849,-6453.0,0.0001624,2]
[404333959,1770065447858,-2129.0,0.00016245,2]
[404333960,1770065447867,-38516.0094,0.00016283,2]
[404333961,1770065447877,-159.60859955,0.00016437,2]
[404333962,1770065447887,-519.2350024,0.00016437,2]
[404333963,1770065447896,-500.0,0.00016437,2]
[404333964,1770065447905,-956.58050138,0.00016438,2]
[404333965,1770065447915,-956.58050138,0.00016438,2]
[404333966,1770065447924,-956.58050138,0.00016438,2]
[404333967,1770065447933,-956.58050138,0.00016438,2]
[404333968,1770065447943,-956.58050138,0.00016438,2]
[404333969,1770065447953,-956.58050138,0.00016438,2]
[404333970,1770065447962,-956.58050138,0.00016438,2]
[404333971,1770065447972,-956.58050138,0.00016438,2]
[404333972,1770065447981,-956.58050138,0.00016438,2]
[404333973,1770065447990,-956.58050138,0.00016438,2]
[404333974,1770065448000,-956.58050138,0.00016438,2]
[404333975,1770065448009,-956.58050138,0.00016438,2]
[404333976,1770065448018,-956.58050138,0.00016438,2]
[404333977,1770065448028,-956.58050138,0.00016438,2]
[404333978,1770065448039,-956.58050138,0.00016438,2]
[404333979,1770065448048,-956.58050138,0.00016438,2]
[404333980,1770065448058,-956.58050138,0.00016438,2]
[404333981,1770065448067,-956.58050138,0.00016438,2]
[404333982,1770065448077,-956.58050138,0.00016438,2]
[404333983,1770065448086,-956.58050138,0.00016438,2]
[404333984,1770065448096,-956.58050138,0.00016438,2]
[404333985,1770065448105,-956.58050138,0.00016438,2]
[404333986,1770065448114,-956.58050138,0.00016438,2]
[404333987,1770065448124,-956.58050138,0.00016438,2]